[Event "Titled Tuesday Blitz August 16 Early 2022"]
[White "Tanenbaum, Zachary"]
[Black "Kambrath, Yannick"]
[WhiteFideId "2060850"]
[BlackFideId "20632525"]
[WhiteElo "2175"]
[BlackElo "2236"]
[Result "1-0"]
[Round "09"]
[TimeControl "180+1"]
[Date "2022.08.16"]
[WhiteClock "0:00:14"]
[BlackClock "0:00:17"]

1. e4 {[%clk 0:03:00]}  c5 {[%clk 0:03:00]} 2. Nf3 {[%clk 0:03:00]}  e6 {[%clk 0:03:00]} 3. d4 {[%clk 0:03:01]}  cxd4 {[%clk 0:03:01]} 4. Nxd4 {[%clk 0:03:01]}  Nf6 {[%clk 0:03:01]} 5. Nc3 {[%clk 0:03:01]}  Nc6 {[%clk 0:03:02]} 6. Bf4 {[%clk 0:03:00]}  Bb4 {[%clk 0:02:58]} 7. Nb5 {[%clk 0:03:00]}  e5 {[%clk 0:02:55]} 8. Bg5 {[%clk 0:02:59]}  O-O {[%clk 0:02:35]} 9. a3 {[%clk 0:02:53]}  h6 {[%clk 0:02:16]} 10. Bh4 {[%clk 0:02:45]}  Bc5 {[%clk 0:02:14]} 11. Qd2 {[%clk 0:02:18]}  a6 {[%clk 0:02:09]} 12. Nd6 {[%clk 0:02:16]}  Nd4 {[%clk 0:02:09]} 13. Nc4 {[%clk 0:01:48]}  d6 {[%clk 0:01:58]} 14. Nd5 {[%clk 0:01:43]}  Nxe4 {[%clk 0:01:38]} 15. Bxd8 {[%clk 0:01:35]}  Nxd2 {[%clk 0:01:38]} 16. Kxd2 {[%clk 0:00:54]}  Rxd8 {[%clk 0:01:37]} 17. b4 {[%clk 0:00:50]}  Ba7 {[%clk 0:01:32]} 18. Bd3 {[%clk 0:00:46]}  Be6 {[%clk 0:01:09]} 19. Nce3 {[%clk 0:00:45]}  Rac8 {[%clk 0:01:08]} 20. Ne7+ {[%clk 0:00:45]}  Kf8 {[%clk 0:01:08]} 21. Nxc8 {[%clk 0:00:46]}  Rxc8 {[%clk 0:01:08]} 22. Rab1 {[%clk 0:00:41]}  g6 {[%clk 0:00:58]} 23. c4 {[%clk 0:00:40]}  f5 {[%clk 0:00:53]} 24. Rhc1 {[%clk 0:00:39]}  e4 {[%clk 0:00:46]} 25. Bf1 {[%clk 0:00:36]}  f4 {[%clk 0:00:42]} 26. Nd5 {[%clk 0:00:36]}  g5 {[%clk 0:00:40]} 27. Nf6 {[%clk 0:00:27]}  Bf5 {[%clk 0:00:36]} 28. Re1 {[%clk 0:00:20]}  d5 {[%clk 0:00:21]} 29. Nxd5 {[%clk 0:00:15]}  b5 {[%clk 0:00:20]} 30. Nc3 {[%clk 0:00:12]}  Rd8 {[%clk 0:00:16]} 31. Kc1 {[%clk 0:00:10]}  bxc4 {[%clk 0:00:14]} 32. Nxe4 {[%clk 0:00:09]}  Nb3+ {[%clk 0:00:13]} 33. Kc2 {[%clk 0:00:05]}  Nd2 {[%clk 0:00:07]} 34. Rbd1 {[%clk 0:00:04]}  Nxe4 {[%clk 0:00:02]} 35. Rxd8+ {[%clk 0:00:03]}  Ke7 {[%clk 0:00:01]} 36. Rd5 {[%clk 0:00:03]}  Ke6 {[%clk 0:00:01]} 37. Ra5 {[%clk 0:00:02]}  Bxf2 {[%clk 0:00:01]} 38. Re2 {[%clk 0:00:02]}  Kf6 {[%clk 0:00:01]} 39. Rxf5+ {[%clk 0:00:02]}  Kxf5 {[%clk 0:00:01]} 40. g3 {[%clk 0:00:03]}  Bd4 {[%clk 0:00:02]} 41. g4+ {[%clk 0:00:03]}  Ke5 {[%clk 0:00:02]} 42. Bg2 {[%clk 0:00:03]}  f3 {[%clk 0:00:03]} 43. Bxf3 {[%clk 0:00:04]}  Kf4 {[%clk 0:00:03]} 44. Bxe4 {[%clk 0:00:04]}  Be3 {[%clk 0:00:04]} 45. Bd5 {[%clk 0:00:05]}  h5 {[%clk 0:00:05]} 46. Bxc4 {[%clk 0:00:05]}  hxg4 {[%clk 0:00:06]} 47. Rg2 {[%clk 0:00:05]}  Kf3 {[%clk 0:00:06]} 48. Rg3+ {[%clk 0:00:05]}  Kf4 {[%clk 0:00:06]} 49. Be2 {[%clk 0:00:06]}  Bf2 {[%clk 0:00:07]} 50. Rxg4+ {[%clk 0:00:06]}  Kf5 {[%clk 0:00:08]} 51. Rg2 {[%clk 0:00:07]}  Be3 {[%clk 0:00:09]} 52. Bd3+ {[%clk 0:00:07]}  Kf6 {[%clk 0:00:09]} 53. Bxa6 {[%clk 0:00:08]}  Bf4 {[%clk 0:00:10]} 54. Be2 {[%clk 0:00:08]}  Bd6 {[%clk 0:00:09]} 55. Bg4 {[%clk 0:00:09]}  Be5 {[%clk 0:00:09]} 56. Kd3 {[%clk 0:00:10]}  Bf4 {[%clk 0:00:10]} 57. Ke4 {[%clk 0:00:10]}  Bc1 {[%clk 0:00:11]} 58. a4 {[%clk 0:00:10]}  Ba3 {[%clk 0:00:11]} 59. b5 {[%clk 0:00:10]}  Bc5 {[%clk 0:00:12]} 60. a5 {[%clk 0:00:11]}  Bb4 {[%clk 0:00:12]} 61. a6 {[%clk 0:00:11]}  Bc5 {[%clk 0:00:13]} 62. Kd5 {[%clk 0:00:11]}  Be3 {[%clk 0:00:13]} 63. Kc6 {[%clk 0:00:12]}  Ke5 {[%clk 0:00:14]} 64. b6 {[%clk 0:00:12]}  Kf4 {[%clk 0:00:14]} 65. b7 {[%clk 0:00:12]}  Ba7 {[%clk 0:00:14]} 66. Kc7 {[%clk 0:00:12]}  Ke3 {[%clk 0:00:15]} 67. b8=Q {[%clk 0:00:12]}  Bxb8+ {[%clk 0:00:16]} 68. Kxb8 {[%clk 0:00:13]}  Kf4 {[%clk 0:00:16]} 69. a7 {[%clk 0:00:13]}  Ke3 {[%clk 0:00:17]} 70. a8=Q {[%clk 0:00:14]} 1-0


[Site "https://www.chess.com"]

[Event "Titled Tuesday Blitz August 16 Early 2022"]
[White "Tapia Ostolaza, Alexei"]
[Black "Alexikov, Alexander"]
[WhiteFideId "6600581"]
[BlackFideId "14103958"]
[WhiteElo "2104"]
[BlackElo "2253"]
[Result "0-1"]
[Round "09"]
[TimeControl "180+2"]
[Date "2022.08.18"]
[WhiteClock "0:00:00"]
[BlackClock "0:00:00"]

1. Nf3 {[%clk 0:00:00]}  Nf6 {[%clk 0:00:00]} 2. g3 {[%clk 0:00:00]}  g6 {[%clk 0:00:00]} 3. b3 {[%clk 0:00:00]}  Bg7 {[%clk 0:00:00]} 4. Bb2 {[%clk 0:00:00]}  d6 {[%clk 0:00:00]} 5. d4 {[%clk 0:00:00]}  O-O {[%clk 0:00:00]} 6. Bg2 {[%clk 0:00:00]}  c6 {[%clk 0:00:00]} 7. O-O {[%clk 0:00:00]}  Bf5 {[%clk 0:00:00]} 8. c4 {[%clk 0:00:00]}  Qc8 {[%clk 0:00:00]} 9. Re1 {[%clk 0:00:00]}  Bh3 {[%clk 0:00:00]} 10. Nc3 {[%clk 0:00:00]}  Bxg2 {[%clk 0:00:00]} 11. Kxg2 {[%clk 0:00:00]}  d5 {[%clk 0:00:00]} 12. Rc1 {[%clk 0:00:00]}  Qd8 {[%clk 0:00:00]} 13. h4 {[%clk 0:00:00]}  Re8 {[%clk 0:00:00]} 14. e3 {[%clk 0:00:00]}  e6 {[%clk 0:00:00]} 15. Ne2 {[%clk 0:00:00]}  Nbd7 {[%clk 0:00:00]} 16. Nf4 {[%clk 0:00:00]}  h6 {[%clk 0:00:00]} 17. Rh1 {[%clk 0:00:00]}  Ne4 {[%clk 0:00:00]} 18. Nd3 {[%clk 0:00:00]}  Qe7 {[%clk 0:00:00]} 19. Rc2 {[%clk 0:00:00]}  Rad8 {[%clk 0:00:00]} 20. Qc1 {[%clk 0:00:00]}  f6 {[%clk 0:00:00]} 21. Ba3 {[%clk 0:00:00]}  Qf7 {[%clk 0:00:00]} 22. cxd5 {[%clk 0:00:00]}  exd5 {[%clk 0:00:00]} 23. Nf4 {[%clk 0:00:00]}  Bf8 {[%clk 0:00:00]} 24. Bxf8 {[%clk 0:00:00]}  Nxf8 {[%clk 0:00:00]} 25. b4 {[%clk 0:00:00]}  a6 {[%clk 0:00:00]} 26. a4 {[%clk 0:00:00]}  Rd6 {[%clk 0:00:00]} 27. Qb2 {[%clk 0:00:00]}  g5 {[%clk 0:00:00]} 28. Nd3 {[%clk 0:00:00]}  Ng6 {[%clk 0:00:00]} 29. hxg5 {[%clk 0:00:00]}  hxg5 {[%clk 0:00:00]} 30. b5 {[%clk 0:00:00]}  cxb5 {[%clk 0:00:00]} 31. axb5 {[%clk 0:00:00]}  a5 {[%clk 0:00:00]} 32. Qa2 {[%clk 0:00:00]}  b6 {[%clk 0:00:00]} 33. Rc6 {[%clk 0:00:00]}  Rxc6 {[%clk 0:00:00]} 34. bxc6 {[%clk 0:00:00]}  Rc8 {[%clk 0:00:00]} 35. Rc1 {[%clk 0:00:00]}  Rc7 {[%clk 0:00:00]} 36. Nh2 {[%clk 0:00:00]}  Qe6 {[%clk 0:00:00]} 37. Qa4 {[%clk 0:00:00]}  Ne7 {[%clk 0:00:00]} 38. Qb5 {[%clk 0:00:00]}  Rxc6 {[%clk 0:00:00]} 39. Rb1 {[%clk 0:00:00]}  Nc3 {[%clk 0:00:00]} 40. Qb3 {[%clk 0:00:00]}  Qe4+ {[%clk 0:00:00]} 0-1


[Site "https://www.chess.com"]

[Event "Titled Tuesday Blitz August 16 Early 2022"]
[White "Terry, Renato"]
[Black "Fawzy, Adham"]
[WhiteFideId "3803457"]
[BlackFideId "10613129"]
[WhiteElo "2577"]
[BlackElo "2541"]
[Result "0-1"]
[Round "09"]
[TimeControl "180+1"]
[Date "2022.08.16"]
[WhiteClock "0:00:01"]
[BlackClock "0:00:51"]

1. d4 {[%clk 0:03:00]}  Nf6 {[%clk 0:02:59]} 2. Bg5 {[%clk 0:03:00]}  e6 {[%clk 0:02:58]} 3. e4 {[%clk 0:03:00]}  c5 {[%clk 0:02:53]} 4. e5 {[%clk 0:02:59]}  h6 {[%clk 0:02:53]} 5. Bc1 {[%clk 0:02:58]}  Nd5 {[%clk 0:02:47]} 6. c4 {[%clk 0:02:58]}  Nb6 {[%clk 0:02:46]} 7. Nf3 {[%clk 0:02:39]}  cxd4 {[%clk 0:02:44]} 8. Qxd4 {[%clk 0:02:37]}  Nc6 {[%clk 0:02:43]} 9. Qe4 {[%clk 0:02:37]}  d5 {[%clk 0:02:36]} 10. exd6 {[%clk 0:02:36]}  Bxd6 {[%clk 0:02:37]} 11. a3 {[%clk 0:02:29]}  Nd7 {[%clk 0:02:28]} 12. Qc2 {[%clk 0:02:24]}  O-O {[%clk 0:02:17]} 13. Nc3 {[%clk 0:02:23]}  Nde5 {[%clk 0:02:15]} 14. Nxe5 {[%clk 0:02:06]}  Bxe5 {[%clk 0:02:16]} 15. Be3 {[%clk 0:02:05]}  Nd4 {[%clk 0:02:10]} 16. Qd1 {[%clk 0:01:51]}  b6 {[%clk 0:02:07]} 17. Bd3 {[%clk 0:01:49]}  Bb7 {[%clk 0:02:07]} 18. O-O {[%clk 0:01:38]}  Nf5 {[%clk 0:01:47]} 19. Bxf5 {[%clk 0:01:11]}  exf5 {[%clk 0:01:48]} 20. f4 {[%clk 0:01:03]}  Bxc3 {[%clk 0:01:42]} 21. bxc3 {[%clk 0:01:04]}  Qc8 {[%clk 0:01:41]} 22. c5 {[%clk 0:00:54]}  bxc5 {[%clk 0:01:42]} 23. Qd6 {[%clk 0:00:53]}  c4 {[%clk 0:01:32]} 24. Rad1 {[%clk 0:00:46]}  Re8 {[%clk 0:01:26]} 25. Rfe1 {[%clk 0:00:39]}  Re6 {[%clk 0:01:23]} 26. Qc5 {[%clk 0:00:33]}  a6 {[%clk 0:01:16]} 27. Bd4 {[%clk 0:00:14]}  Qxc5 {[%clk 0:01:15]} 28. Bxc5 {[%clk 0:00:15]}  Be4 {[%clk 0:01:14]} 29. a4 {[%clk 0:00:03]}  Rb8 {[%clk 0:01:13]} 30. Bb4 {[%clk 0:00:04]}  a5 {[%clk 0:01:10]} 31. Bxa5 {[%clk 0:00:04]}  Rb2 {[%clk 0:01:10]} 32. g3 {[%clk 0:00:01]}  Rg2+ {[%clk 0:01:10]} 33. Kf1 {[%clk 0:00:02]}  Rxh2 {[%clk 0:01:11]} 34. Bb4 {[%clk 0:00:01]}  Rg6 {[%clk 0:01:06]} 35. Re3 {[%clk 0:00:01]}  Re6 {[%clk 0:01:00]} 36. Rd8+ {[%clk 0:00:02]}  Kh7 {[%clk 0:01:00]} 37. Kg1 {[%clk 0:00:02]}  Ra2 {[%clk 0:00:54]} 38. a5 {[%clk 0:00:02]}  h5 {[%clk 0:00:55]} 39. Rd4 {[%clk 0:00:01]}  Rg6 {[%clk 0:00:52]} 40. Rxc4 {[%clk 0:00:01]}  h4 {[%clk 0:00:53]} 41. Kf1 {[%clk 0:00:01]}  hxg3 {[%clk 0:00:52]} 42. Rcxe4 {[%clk 0:00:01]}  fxe4 {[%clk 0:00:51]} 0-1


[Site "https://www.chess.com"]

[Event "Titled Tuesday Blitz August 16 Early 2022"]
[White "Turzo, Attila"]
[Black "Nugumanov, Bakhtiyar"]
[WhiteFideId "704954"]
[BlackFideId "13701797"]
[WhiteElo "2298"]
[BlackElo "2287"]
[Result "1-0"]
[Round "09"]
[TimeControl "180+2"]
[Date "2022.08.18"]
[WhiteClock "0:00:00"]
[BlackClock "0:00:00"]

1. e4 {[%clk 0:00:00]}  d6 {[%clk 0:00:00]} 2. d4 {[%clk 0:00:00]}  Nf6 {[%clk 0:00:00]} 3. Nc3 {[%clk 0:00:00]}  g6 {[%clk 0:00:00]} 4. Nf3 {[%clk 0:00:00]}  Bg7 {[%clk 0:00:00]} 5. h3 {[%clk 0:00:00]}  O-O {[%clk 0:00:00]} 6. Be3 {[%clk 0:00:00]}  a6 {[%clk 0:00:00]} 7. a4 {[%clk 0:00:00]}  d5 {[%clk 0:00:00]} 8. e5 {[%clk 0:00:00]}  Ne4 {[%clk 0:00:00]} 9. Bd3 {[%clk 0:00:00]}  Nxc3 {[%clk 0:00:00]} 10. bxc3 {[%clk 0:00:00]}  c5 {[%clk 0:00:00]} 11. O-O {[%clk 0:00:00]}  Nc6 {[%clk 0:00:00]} 12. Qd2 {[%clk 0:00:00]}  c4 {[%clk 0:00:00]} 13. Be2 {[%clk 0:00:00]}  Bf5 {[%clk 0:00:00]} 14. Nh4 {[%clk 0:00:00]}  Bd7 {[%clk 0:00:00]} 15. Bh6 {[%clk 0:00:00]}  f6 {[%clk 0:00:00]} 16. Bxg7 {[%clk 0:00:00]}  Kxg7 {[%clk 0:00:00]} 17. f4 {[%clk 0:00:00]}  e6 {[%clk 0:00:00]} 18. Nf3 {[%clk 0:00:00]}  fxe5 {[%clk 0:00:00]} 19. dxe5 {[%clk 0:00:00]}  Qb6+ {[%clk 0:00:00]} 20. Kh2 {[%clk 0:00:00]}  Ne7 {[%clk 0:00:00]} 21. g4 {[%clk 0:00:00]}  Rf7 {[%clk 0:00:00]} 22. Ng5 {[%clk 0:00:00]}  Rff8 {[%clk 0:00:00]} 23. Nf3 {[%clk 0:00:00]}  Rad8 {[%clk 0:00:00]} 24. Nd4 {[%clk 0:00:00]}  Nc6 {[%clk 0:00:00]} 25. Rf2 {[%clk 0:00:00]}  Qa5 {[%clk 0:00:00]} 26. Raf1 {[%clk 0:00:00]}  Nxd4 {[%clk 0:00:00]} 27. Qxd4 {[%clk 0:00:00]}  Bxa4 {[%clk 0:00:00]} 28. f5 {[%clk 0:00:00]}  exf5 {[%clk 0:00:00]} 29. gxf5 {[%clk 0:00:00]}  Qc7 {[%clk 0:00:00]} 30. f6+ {[%clk 0:00:00]}  Kg8 {[%clk 0:00:00]} 31. Kh1 {[%clk 0:00:00]}  Bxc2 {[%clk 0:00:00]} 32. e6 {[%clk 0:00:00]}  Be4+ {[%clk 0:00:00]} 33. Bf3 {[%clk 0:00:00]}  Bxf3+ {[%clk 0:00:00]} 34. Rxf3 {[%clk 0:00:00]}  Rf7 {[%clk 0:00:00]} 35. exf7+ {[%clk 0:00:00]}  Qxf7 {[%clk 0:00:00]} 36. Re3 {[%clk 0:00:00]}  Re8 {[%clk 0:00:00]} 37. Rxe8+ {[%clk 0:00:00]}  Qxe8 {[%clk 0:00:00]} 38. f7+ {[%clk 0:00:00]}  Qxf7 {[%clk 0:00:00]} 39. Rxf7 {[%clk 0:00:00]}  Kxf7 {[%clk 0:00:00]} 40. Qxd5+ {[%clk 0:00:00]} 1-0


[Site "https://www.chess.com"]

[Event "Titled Tuesday Blitz August 16 Early 2022"]
[White "Vachylia, Andrii"]
[Black "Xu, Yi"]
[WhiteFideId "14137224"]
[BlackFideId "8605564"]
[WhiteElo "2318"]
[BlackElo "2471"]
[Result "0-1"]
[Round "09"]
[TimeControl "180+1"]
[Date "2022.08.16"]
[WhiteClock "0:00:07"]
[BlackClock "0:00:08"]

1. e4 {[%clk 0:02:59]}  c6 {[%clk 0:02:59]} 2. d4 {[%clk 0:02:58]}  d5 {[%clk 0:02:58]} 3. Nc3 {[%clk 0:02:58]}  dxe4 {[%clk 0:02:58]} 4. Nxe4 {[%clk 0:02:59]}  Nf6 {[%clk 0:02:57]} 5. Nxf6+ {[%clk 0:02:59]}  exf6 {[%clk 0:02:57]} 6. c3 {[%clk 0:02:59]}  Bd6 {[%clk 0:02:56]} 7. Bd3 {[%clk 0:02:59]}  O-O {[%clk 0:02:55]} 8. Qc2 {[%clk 0:02:59]}  h5 {[%clk 0:02:53]} 9. Ne2 {[%clk 0:02:59]}  h4 {[%clk 0:02:50]} 10. Be3 {[%clk 0:02:59]}  Re8 {[%clk 0:02:48]} 11. O-O {[%clk 0:02:58]}  Nd7 {[%clk 0:02:47]} 12. h3 {[%clk 0:02:58]}  Nf8 {[%clk 0:02:47]} 13. Rfe1 {[%clk 0:02:58]}  Bb8 {[%clk 0:02:44]} 14. Qd2 {[%clk 0:02:35]}  Qd6 {[%clk 0:02:41]} 15. f4 {[%clk 0:02:34]}  Bc7 {[%clk 0:02:39]} 16. Kf2 {[%clk 0:02:31]}  f5 {[%clk 0:02:33]} 17. Ng1 {[%clk 0:02:25]}  Qh6 {[%clk 0:02:14]} 18. Nf3 {[%clk 0:02:23]}  Be6 {[%clk 0:02:12]} 19. Ng5 {[%clk 0:02:12]}  g6 {[%clk 0:02:04]} 20. Kg1 {[%clk 0:02:11]}  Rad8 {[%clk 0:02:02]} 21. Qf2 {[%clk 0:02:10]}  Bd5 {[%clk 0:01:59]} 22. c4 {[%clk 0:02:07]}  Be4 {[%clk 0:02:00]} 23. Nxe4 {[%clk 0:02:07]}  fxe4 {[%clk 0:02:00]} 24. Bc2 {[%clk 0:01:46]}  f5 {[%clk 0:01:59]} 25. d5 {[%clk 0:01:45]}  cxd5 {[%clk 0:01:56]} 26. cxd5 {[%clk 0:01:46]}  Bd6 {[%clk 0:01:45]} 27. Rac1 {[%clk 0:01:43]}  Nd7 {[%clk 0:01:45]} 28. Ba4 {[%clk 0:01:43]}  Re7 {[%clk 0:01:42]} 29. Rc2 {[%clk 0:01:39]}  Nf6 {[%clk 0:01:41]} 30. Rec1 {[%clk 0:01:39]}  Kh7 {[%clk 0:01:39]} 31. Bb3 {[%clk 0:01:38]}  Rg8 {[%clk 0:01:33]} 32. Rc8 {[%clk 0:01:36]}  Rxc8 {[%clk 0:01:29]} 33. Rxc8 {[%clk 0:01:37]}  Re8 {[%clk 0:01:29]} 34. Rc3 {[%clk 0:00:56]}  a6 {[%clk 0:01:16]} 35. Bd4 {[%clk 0:00:52]}  Nh5 {[%clk 0:01:14]} 36. Be5 {[%clk 0:00:53]}  Rxe5 {[%clk 0:01:00]} 37. fxe5 {[%clk 0:00:53]}  Bxe5 {[%clk 0:01:01]} 38. d6 {[%clk 0:00:38]}  Bxc3 {[%clk 0:00:51]} 39. bxc3 {[%clk 0:00:34]}  Qc1+ {[%clk 0:00:51]} 40. Kh2 {[%clk 0:00:34]}  Ng3 {[%clk 0:00:44]} 41. Qg1 {[%clk 0:00:30]}  Nf1+ {[%clk 0:00:37]} 42. Kh1 {[%clk 0:00:28]}  Ng3+ {[%clk 0:00:38]} 43. Kh2 {[%clk 0:00:28]}  Qf4 {[%clk 0:00:32]} 44. d7 {[%clk 0:00:23]}  Ne2+ {[%clk 0:00:29]} 45. Kh1 {[%clk 0:00:23]}  Nxg1 {[%clk 0:00:28]} 46. d8=Q {[%clk 0:00:22]}  Ne2 {[%clk 0:00:19]} 47. Qg8+ {[%clk 0:00:13]}  Kh6 {[%clk 0:00:18]} 48. Qh8+ {[%clk 0:00:14]}  Kg5 {[%clk 0:00:17]} 49. Qd8+ {[%clk 0:00:14]}  Kh5 {[%clk 0:00:16]} 50. Qd1 {[%clk 0:00:08]}  Qc1 {[%clk 0:00:12]} 51. Kh2 {[%clk 0:00:08]}  Qxc3 {[%clk 0:00:09]} 52. Qxe2+ {[%clk 0:00:08]}  Kh6 {[%clk 0:00:09]} 53. Qf2 {[%clk 0:00:08]}  Qc7+ {[%clk 0:00:07]} 54. Kg1 {[%clk 0:00:08]}  Qc1+ {[%clk 0:00:07]} 55. Kh2 {[%clk 0:00:09]}  Kg5 {[%clk 0:00:07]} 56. Qe2 {[%clk 0:00:06]}  Qf4+ {[%clk 0:00:05]} 57. Kg1 {[%clk 0:00:06]}  e3 {[%clk 0:00:05]} 58. Qf3 {[%clk 0:00:04]}  Qd4 {[%clk 0:00:05]} 59. Qe2 {[%clk 0:00:03]}  b5 {[%clk 0:00:05]} 60. Kh2 {[%clk 0:00:02]}  Qf4+ {[%clk 0:00:05]} 61. Kg1 {[%clk 0:00:03]}  Qd4 {[%clk 0:00:05]} 62. Kh2 {[%clk 0:00:03]}  Qe5+ {[%clk 0:00:05]} 63. Kg1 {[%clk 0:00:03]}  a5 {[%clk 0:00:06]} 64. Bc2 {[%clk 0:00:04]}  a4 {[%clk 0:00:04]} 65. Bd3 {[%clk 0:00:03]}  b4 {[%clk 0:00:04]} 66. Bc4 {[%clk 0:00:04]}  Qa1+ {[%clk 0:00:04]} 67. Kh2 {[%clk 0:00:04]}  Qe5+ {[%clk 0:00:04]} 68. Kg1 {[%clk 0:00:04]}  Qc3 {[%clk 0:00:05]} 69. Qd3 {[%clk 0:00:02]}  Qe1+ {[%clk 0:00:02]} 70. Kh2 {[%clk 0:00:03]}  Qg3+ {[%clk 0:00:02]} 71. Kg1 {[%clk 0:00:03]}  Qf2+ {[%clk 0:00:02]} 72. Kh2 {[%clk 0:00:03]}  b3 {[%clk 0:00:02]} 73. axb3 {[%clk 0:00:03]}  a3 {[%clk 0:00:03]} 74. b4 {[%clk 0:00:02]}  Qg3+ {[%clk 0:00:01]} 75. Kg1 {[%clk 0:00:02]}  Qe1+ {[%clk 0:00:02]} 76. Kh2 {[%clk 0:00:03]}  Qg3+ {[%clk 0:00:02]} 77. Kg1 {[%clk 0:00:03]}  Qf2+ {[%clk 0:00:03]} 78. Kh2 {[%clk 0:00:03]}  e2 {[%clk 0:00:04]} 79. Qd2+ {[%clk 0:00:03]}  Qf4+ {[%clk 0:00:04]} 80. Qxf4+ {[%clk 0:00:02]}  Kxf4 {[%clk 0:00:04]} 81. Bxe2 {[%clk 0:00:02]}  a2 {[%clk 0:00:05]} 82. b5 {[%clk 0:00:03]}  a1=Q {[%clk 0:00:05]} 83. b6 {[%clk 0:00:04]}  Qe5 {[%clk 0:00:06]} 84. Bf3 {[%clk 0:00:04]}  Ke3+ {[%clk 0:00:06]} 85. Kh1 {[%clk 0:00:05]}  Kf2 {[%clk 0:00:07]} 86. b7 {[%clk 0:00:06]}  Qe1+ {[%clk 0:00:07]} 87. Kh2 {[%clk 0:00:07]}  Qg1# {[%clk 0:00:08]} 0-1


[Site "https://www.chess.com"]

[Event "Titled Tuesday Blitz August 16 Early 2022"]
[White "Yurovskykh, Oleksandr"]
[Black "Kotepalli, Sai Nirupama"]
[WhiteFideId "14134020"]
[BlackFideId "5039444"]
[WhiteElo "2292"]
[BlackElo "1910"]
[Result "1-0"]
[Round "09"]
[TimeControl "180+2"]
[Date "2022.08.18"]
[WhiteClock "0:00:00"]
[BlackClock "0:00:00"]

1. d4 {[%clk 0:00:00]}  g6 {[%clk 0:00:00]} 2. e4 {[%clk 0:00:00]}  Bg7 {[%clk 0:00:00]} 3. c3 {[%clk 0:00:00]}  d6 {[%clk 0:00:00]} 4. Bg5 {[%clk 0:00:00]}  h6 {[%clk 0:00:00]} 5. Bh4 {[%clk 0:00:00]}  Nd7 {[%clk 0:00:00]} 6. Nd2 {[%clk 0:00:00]}  Ngf6 {[%clk 0:00:00]} 7. Ngf3 {[%clk 0:00:00]}  c5 {[%clk 0:00:00]} 8. d5 {[%clk 0:00:00]}  Qb6 {[%clk 0:00:00]} 9. Qc2 {[%clk 0:00:00]}  O-O {[%clk 0:00:00]} 10. Be2 {[%clk 0:00:00]}  a6 {[%clk 0:00:00]} 11. a4 {[%clk 0:00:00]}  Re8 {[%clk 0:00:00]} 12. O-O {[%clk 0:00:00]}  Nf8 {[%clk 0:00:00]} 13. Nc4 {[%clk 0:00:00]}  Qc7 {[%clk 0:00:00]} 14. a5 {[%clk 0:00:00]}  e5 {[%clk 0:00:00]} 15. Nb6 {[%clk 0:00:00]}  Rb8 {[%clk 0:00:00]} 16. Nxc8 {[%clk 0:00:00]}  Rbxc8 {[%clk 0:00:00]} 17. Nd2 {[%clk 0:00:00]}  N8h7 {[%clk 0:00:00]} 18. Nc4 {[%clk 0:00:00]}  Nd7 {[%clk 0:00:00]} 19. Ra3 {[%clk 0:00:00]}  Rb8 {[%clk 0:00:00]} 20. Rb3 {[%clk 0:00:00]}  Bf6 {[%clk 0:00:00]} 21. Bg3 {[%clk 0:00:00]}  Bg7 {[%clk 0:00:00]} 22. Ra1 {[%clk 0:00:00]}  Rf8 {[%clk 0:00:00]} 23. Bd3 {[%clk 0:00:00]}  Ng5 {[%clk 0:00:00]} 24. f3 {[%clk 0:00:00]}  Nh7 {[%clk 0:00:00]} 25. Bf2 {[%clk 0:00:00]}  Rbe8 {[%clk 0:00:00]} 26. Re1 {[%clk 0:00:00]}  Nhf6 {[%clk 0:00:00]} 27. Be3 {[%clk 0:00:00]}  Nh5 {[%clk 0:00:00]} 28. Ra3 {[%clk 0:00:00]}  Nf4 {[%clk 0:00:00]} 29. Bf1 {[%clk 0:00:00]}  f5 {[%clk 0:00:00]} 30. exf5 {[%clk 0:00:00]}  gxf5 {[%clk 0:00:00]} 31. Bxf4 {[%clk 0:00:00]}  exf4 {[%clk 0:00:00]} 32. Raa1 {[%clk 0:00:00]}  Ne5 {[%clk 0:00:00]} 33. Nxe5 {[%clk 0:00:00]}  dxe5 {[%clk 0:00:00]} 34. Bd3 {[%clk 0:00:00]}  Qd7 {[%clk 0:00:00]} 35. Qa4 {[%clk 0:00:00]}  Qxa4 {[%clk 0:00:00]} 36. Rxa4 {[%clk 0:00:00]}  h5 {[%clk 0:00:00]} 37. Ra3 {[%clk 0:00:00]}  Bh6 {[%clk 0:00:00]} 38. Rb3 {[%clk 0:00:00]}  Rf7 {[%clk 0:00:00]} 39. d6 {[%clk 0:00:00]}  Bg7 {[%clk 0:00:00]} 40. Bc4 {[%clk 0:00:00]}  e4 {[%clk 0:00:00]} 41. Bxf7+ {[%clk 0:00:00]}  Kxf7 {[%clk 0:00:00]} 42. Rxb7+ {[%clk 0:00:00]}  Kf6 {[%clk 0:00:00]} 43. fxe4 {[%clk 0:00:00]} 1-0


[Site "https://www.chess.com"]

[Event "Titled Tuesday Blitz August 16 Early 2022"]
[White "Zenin, Dmitry"]
[Black "Voege, Tobias"]
[WhiteFideId "4127897"]
[BlackFideId "1270513"]
[WhiteElo "2215"]
[BlackElo "2360"]
[Result "0-1"]
[Round "09"]
[TimeControl "180+2"]
[Date "2022.08.18"]
[WhiteClock "0:00:00"]
[BlackClock "0:00:00"]

1. c4 {[%clk 0:00:00]}  e5 {[%clk 0:00:00]} 2. Nc3 {[%clk 0:00:00]}  Nf6 {[%clk 0:00:00]} 3. g3 {[%clk 0:00:00]}  c6 {[%clk 0:00:00]} 4. e4 {[%clk 0:00:00]}  d5 {[%clk 0:00:00]} 5. exd5 {[%clk 0:00:00]}  cxd5 {[%clk 0:00:00]} 6. cxd5 {[%clk 0:00:00]}  Nxd5 {[%clk 0:00:00]} 7. Bg2 {[%clk 0:00:00]}  Nc7 {[%clk 0:00:00]} 8. Nf3 {[%clk 0:00:00]}  Nc6 {[%clk 0:00:00]} 9. O-O {[%clk 0:00:00]}  Bg4 {[%clk 0:00:00]} 10. Qa4 {[%clk 0:00:00]}  Qd7 {[%clk 0:00:00]} 11. Re1 {[%clk 0:00:00]}  f6 {[%clk 0:00:00]} 12. d4 {[%clk 0:00:00]}  Bxf3 {[%clk 0:00:00]} 13. Bxf3 {[%clk 0:00:00]}  Nxd4 {[%clk 0:00:00]} 14. Qxd7+ {[%clk 0:00:00]}  Kxd7 {[%clk 0:00:00]} 15. Bxb7 {[%clk 0:00:00]}  Rb8 {[%clk 0:00:00]} 16. Be4 {[%clk 0:00:00]}  f5 {[%clk 0:00:00]} 17. Bg2 {[%clk 0:00:00]}  Bd6 {[%clk 0:00:00]} 18. Rd1 {[%clk 0:00:00]}  Nce6 {[%clk 0:00:00]} 19. b3 {[%clk 0:00:00]}  Rhc8 {[%clk 0:00:00]} 20. Nd5 {[%clk 0:00:00]}  Ne2+ {[%clk 0:00:00]} 21. Kf1 {[%clk 0:00:00]}  Nxc1 {[%clk 0:00:00]} 22. Raxc1 {[%clk 0:00:00]}  Rxc1 {[%clk 0:00:00]} 23. Rxc1 {[%clk 0:00:00]}  Ba3 {[%clk 0:00:00]} 24. Rc4 {[%clk 0:00:00]}  Rc8 {[%clk 0:00:00]} 25. Rxc8 {[%clk 0:00:00]}  Kxc8 {[%clk 0:00:00]} 26. Ke2 {[%clk 0:00:00]}  Kd7 {[%clk 0:00:00]} 27. Kd3 {[%clk 0:00:00]}  Kd6 {[%clk 0:00:00]} 28. Kc4 {[%clk 0:00:00]}  Bc5 {[%clk 0:00:00]} 29. f4 {[%clk 0:00:00]}  e4 {[%clk 0:00:00]} 30. g4 {[%clk 0:00:00]}  g6 {[%clk 0:00:00]} 31. gxf5 {[%clk 0:00:00]}  gxf5 {[%clk 0:00:00]} 32. Bh3 {[%clk 0:00:00]}  Ng7 {[%clk 0:00:00]} 33. b4 {[%clk 0:00:00]}  Bg1 {[%clk 0:00:00]} 34. Nf6 {[%clk 0:00:00]}  h6 {[%clk 0:00:00]} 0-1


[Site "https://www.chess.com"]